fUSD/lending_fUSD_20240719
["ID","MTS","AMOUNT","RATE_DAILY","PERIOD"]
[332628904,1721374287904,-618.57,0.00033013,14]
[332628905,1721374287915,-922.88,0.00033013,14]
[332628906,1721374287927,-500.0,0.00033013,14]
[332628907,1721374287936,-500.0,0.00033013,14]
[332628908,1721374287946,-500.0,0.00033013,14]
[332628909,1721374287956,-500.0,0.00033013,14]
[332628910,1721374287965,-1426.93,0.00033013,14]
[332628911,1721374287974,-500.0,0.00033013,14]
[332628912,1721374287984,-500.0,0.00033013,14]
[332628913,1721374287994,-2121.44,0.00033013,14]
[332628914,1721374288003,-1492.61,0.00033013,14]
[332628915,1721374288013,-2060.02,0.00033013,14]
[332628916,1721374288022,-500.0,0.00033013,14]
[332628917,1721374288032,-1270.35,0.00033013,14]
[332628918,1721374288041,-500.0,0.00033013,14]
[332628919,1721374288053,-500.0,0.00033013,14]
[332628920,1721374288063,-1782.26,0.00033013,14]
[332628921,1721374288075,-500.0,0.00033013,14]
[332628922,1721374288087,-3015.1,0.00033013,14]
[332628923,1721374288097,-500.0,0.00033013,14]
[332628924,1721374288109,-500.0,0.00033013,14]
[332628925,1721374288118,-500.0,0.00033013,14]
[332628926,1721374288128,-1363.34,0.00033013,14]
[332628927,1721374288137,-500.0,0.00033013,14]
[332628928,1721374288148,-1188.43,0.00033013,14]
[332628929,1721374288165,-942.62,0.00033013,14]
[332628930,1721374288177,-500.0,0.00033013,14]
[332628931,1721374288186,-500.0,0.00033013,14]
[332628932,1721374288196,-500.0,0.00033013,14]
[332628933,1721374288206,-500.0,0.00033013,14]
[332628934,1721374288216,-364.87511616,0.00033013,14]
[332628935,1721374288226,-2312.04,0.00033013,14]
[332628936,1721374288235,-500.0,0.00033013,14]
[332628937,1721374288245,-501.2068322,0.00033013,14]
[332628938,1721374288255,-768.63,0.00033013,14]
[332628939,1721374288265,-500.0,0.00033013,14]
[332628940,1721374288275,-500.0,0.00033013,14]
[332628941,1721374288284,-500.0,0.00033013,14]
[332628942,1721374288294,-569.91,0.00033013,14]
[332628943,1721374288304,-500.0,0.00033013,14]
[332628944,1721374288316,-500.0,0.00033013,14]
[332628945,1721374288326,-500.0,0.00033013,14]
[332628946,1721374288335,-500.0,0.00033013,14]
[332628947,1721374288345,-500.0,0.00033013,14]
[332628948,1721374288356,-584.7812732,0.00033013,14]
[332628949,1721374288366,-1535.53,0.00033013,14]
[332628950,1721374288375,-829.12,0.00033013,14]
[332628951,1721374288385,-500.93555957,0.00033013,14]
[332628952,1721374288395,-1425.08,0.00033013,14]
[332628953,1721374288405,-500.0,0.00033013,14]
[332628954,1721374288416,-500.0,0.00033013,14]
[332628955,1721374288425,-785.93,0.00033013,14]
[332628956,1721374288435,-728.38,0.00033013,14]
[332628957,1721374288445,-3290.05,0.00033013,14]
[332628958,1721374288454,-500.0,0.00033013,14]
[332628959,1721374288464,-500.0,0.00033013,14]
[332628960,1721374288474,-501.33331933,0.00033013,14]
[332628961,1721374288483,-500.0,0.00033013,14]
[332628962,1721374288493,-500.0,0.00033013,14]
[332628963,1721374288503,-500.0,0.00033013,14]
[332628964,1721374288513,-918.05,0.00033013,14]
[332628965,1721374288522,-500.0,0.00033013,14]
[332628966,1721374288532,-1257.94,0.00033013,14]
[332628967,1721374288542,-541.81135248,0.00033013,14]
[332628968,1721374288551,-2459.5,0.00033013,14]
[332628969,1721374288561,-500.0,0.00033013,14]
[332628970,1721374288570,-500.0,0.00033013,14]
[332628971,1721374288580,-500.0,0.00033013,14]
[332628972,1721374288590,-500.0,0.00033013,14]
[332628973,1721374288599,-500.0,0.00033013,14]
[332628974,1721374288610,-461.45858235,0.00033013,14]
[332628975,1721374288619,-500.0,0.00033013,14]
[332628976,1721374288628,-798.81,0.00033013,14]
[332628977,1721374288638,-500.0,0.00033013,14]
[332628978,1721374288647,-500.0,0.00033013,14]
[332628979,1721374288657,-742.79,0.00033013,14]
[332628980,1721374288666,-500.0,0.00033013,14]
[332628981,1721374288675,-500.0,0.00033013,14]
[332628982,1721374288685,-500.0,0.00033013,14]
[332628983,1721374288695,-500.0,0.00033013,14]
[332628984,1721374288705,-1058.6,0.00033013,14]
[332628985,1721374288715,-559.06,0.00033013,14]
[332628986,1721374288725,-500.0,0.00033013,14]
[332628987,1721374288736,-500.0,0.00033013,14]
[332628988,1721374288747,-500.0,0.00033013,14]
[332628989,1721374288758,-983.06,0.00033013,14]
[332628990,1721374288768,-500.0,0.00033013,14]
[332628991,1721374288777,-506.54621823,0.00033013,14]
[332628992,1721374288788,-1339.89,0.00033013,14]
[332628993,1721374288799,-500.0,0.00033013,14]
[332628994,1721374288810,-501.72,0.00033013,14]
[332628995,1721374288820,-532.01,0.00033013,14]
[332628996,1721374288830,-984.21,0.00033013,14]
[332628997,1721374288840,-708.71,0.00033013,14]
[332628998,1721374288851,-4177.7,0.00033013,14]
[332628999,1721374288861,-1412.03,0.00033013,14]
[332629000,1721374288870,-1608.43,0.00033013,14]
[332629001,1721374288879,-500.0,0.00033013,14]
[332629002,1721374288889,-500.0,0.00033013,14]
[332629003,1721374288899,-620.3,0.00033013,14]
[332629004,1721374288908,-667.6,0.00033013,14]
[332629005,1721374288918,-541.83,0.00033013,14]
[332629006,1721374288929,-500.0,0.00033013,14]
[332629007,1721374288939,-1153.89,0.00033013,14]
[332629008,1721374288948,-500.0,0.00033013,14]
[332629009,1721374288958,-500.0,0.00033013,14]
[332629010,1721374288967,-4221.72,0.00033013,14]
[332629011,1721374288978,-500.0,0.00033013,14]
[332629012,1721374288987,-500.0,0.00033013,14]
[332629013,1721374288996,-500.0,0.00033013,14]
[332629014,1721374289006,-500.0,0.00033013,14]
[332629015,1721374289015,-500.0,0.00033013,14]
[332629016,1721374289024,-990.52,0.00033013,14]
[332629017,1721374289034,-2019.59,0.00033013,14]
[332629018,1721374289043,-500.0,0.00033013,14]
[332629019,1721374289053,-500.0,0.00033013,14]
[332629020,1721374289063,-1099.48,0.00033013,14]
[332629021,1721374289073,-500.0,0.00033013,14]
[332629022,1721374289083,-500.0,0.00033013,14]
[332629023,1721374289092,-2716.85,0.00033013,14]
[332629024,1721374289102,-500.0,0.00033013,14]
[332629025,1721374289112,-503.63109524,0.00033013,14]
[332629026,1721374289122,-500.0,0.00033013,14]
[332629027,1721374289131,-1257.09,0.00033013,14]
[332629028,1721374289141,-547.27,0.00033013,14]
[332629029,1721374289152,-500.0,0.00033013,14]
[332629030,1721374289164,-500.0,0.00033013,14]
[332629031,1721374289174,-500.0,0.00033013,14]
[332629032,1721374289183,-500.0,0.00033013,14]
[332629033,1721374289195,-1599.77,0.00033013,14]
[332629034,1721374289205,-500.0,0.00033013,14]
[332629035,1721374289216,-719.64,0.00033013,14]
[332629036,1721374289226,-500.0,0.00033013,14]
[332629037,1721374289237,-500.0,0.00033013,14]
[332629038,1721374289247,-500.0,0.00033013,14]
[332629039,1721374289257,-500.0,0.00033013,14]
[332629040,1721374289266,-1434.26,0.00033013,14]
[332629041,1721374289275,-857.73,0.00033013,14]
[332629042,1721374289285,-1986.48,0.00033013,14]
[332629043,1721374289296,-938.89,0.00033013,14]
[332629044,1721374289306,-500.0,0.00033013,14]
[332629045,1721374289316,-500.0,0.00033013,14]
[332629046,1721374289326,-500.0,0.00033013,14]
[332629047,1721374289336,-500.0,0.00033013,14]
[332629048,1721374289345,-700.01,0.00033013,14]
[332629049,1721374289356,-500.0,0.00033013,14]
[332629050,1721374289366,-500.0,0.00033013,14]
[332629051,1721374289375,-500.0,0.00033013,14]
[332629052,1721374289385,-500.0,0.00033013,14]
[332629053,1721374289395,-1795.89,0.00033013,14]
[332629054,1721374289406,-739.71,0.00033013,14]
[332629055,1721374289415,-500.0,0.00033013,14]
[332629056,1721374289424,-500.0,0.00033013,14]
[332629057,1721374289435,-925.24,0.00033013,14]
[332629058,1721374289445,-2641.15,0.00033013,14]
[332629059,1721374289456,-856.94,0.00033013,14]
[332629060,1721374289466,-690.03,0.00033013,14]
[332629061,1721374289475,-500.0,0.00033013,14]
[332629062,1721374289485,-1022.79,0.00033013,14]
[332629063,1721374289495,-1025.98,0.00033013,14]
[332629064,1721374289505,-500.0,0.00033013,14]
[332629065,1721374289515,-712.85,0.00033013,14]
[332629066,1721374289524,-500.0,0.00033013,14]
[332629067,1721374289534,-500.0,0.00033013,14]
[332629068,1721374289544,-500.0,0.00033013,14]
[332629069,1721374289554,-507.76461439,0.00033013,14]
[332629070,1721374289563,-2660.99,0.00033013,14]
[332629071,1721374289573,-500.0,0.00033013,14]
[332629072,1721374289582,-644.42,0.00033013,14]
[332629073,1721374289591,-518.57967746,0.00033013,14]
[332629074,1721374289779,-500.0,0.00033013,14]
[332629075,1721374289790,-847.33,0.00033013,14]
[332629076,1721374289800,-2189.59,0.00033013,14]
[332629077,1721374289809,-500.0,0.00033013,14]
[332629078,1721374289819,-500.0,0.00033013,14]
[332629079,1721374289828,-500.0,0.00033013,14]
[332629080,1721374289838,-748.24,0.00033013,14]
[332629081,1721374289847,-500.0,0.00033013,14]
[332629082,1721374289856,-500.0,0.00033013,14]
[332629083,1721374289866,-500.0,0.00033013,14]
[332629084,1721374289875,-500.0,0.00033013,14]
[332629085,1721374289885,-500.0,0.00033013,14]
[332629086,1721374289895,-389.89710058,0.00033013,14]
[332629087,1721374289904,-792.94,0.00033013,14]
[332629088,1721374289914,-650.68,0.00033013,14]
[332629089,1721374289923,-576.05,0.00033013,14]
[332629090,1721374289933,-1669.97,0.00033013,14]
[332629091,1721374289942,-500.0,0.00033013,14]
[332629092,1721374289952,-500.0,0.00033013,14]
[332629093,1721374289961,-500.0,0.00033013,14]
[332629094,1721374289971,-500.0,0.00033013,14]
[332629095,1721374289980,-526.81048936,0.00033013,14]
[332629096,1721374289989,-3200.91,0.00033013,14]
[332629097,1721374289999,-500.0,0.00033013,14]
[332629098,1721374290008,-500.0,0.00033013,14]
[332629099,1721374290018,-500.0,0.00033013,14]
[332629100,1721374290028,-1188.46,0.00033013,14]
[332629101,1721374290037,-524.24,0.00033013,14]
[332629102,1721374290047,-2101.33,0.00033013,14]
[332629103,1721374290057,-500.0,0.00033013,14]
[332629104,1721374290067,-3620.33,0.00033013,14]
[332629105,1721374290076,-724.14,0.00033013,14]
[332629106,1721374290086,-500.0,0.00033013,14]
[332629107,1721374290095,-500.0,0.00033013,14]
[332629108,1721374290105,-500.0,0.00033013,14]
[332629109,1721374290116,-1606.46,0.00033013,14]
[332629110,1721374290125,-2849.42,0.00033013,14]
[332629111,1721374290135,-500.0,0.00033013,14]
[332629112,1721374290144,-500.0,0.00033013,14]
[332629113,1721374290155,-735.51,0.00033013,14]
[332629114,1721374290165,-500.0,0.00033013,14]
[332629115,1721374290174,-2219.39,0.00033013,14]
[332629116,1721374290184,-1136.35,0.00033013,14]
[332629117,1721374290193,-500.0,0.00033013,14]
[332629118,1721374290204,-500.0,0.00033013,14]
[332629119,1721374290214,-3478.95,0.00033013,14]
[332629120,1721374290223,-1471.57,0.00033013,14]
[332629121,1721374290234,-500.0,0.00033013,14]
[332629122,1721374290244,-500.0,0.00033013,14]
[332629123,1721374290253,-500.0,0.00033013,14]
[332629124,1721374290263,-536.55,0.00033013,14]
[332629125,1721374290272,-619.21,0.00033013,14]
[332629126,1721374290282,-3703.31,0.00033013,14]
[332629127,1721374290291,-501.16646718,0.00033013,14]
[332629128,1721374290301,-1121.26,0.00033013,14]
[332629129,1721374290312,-552.02,0.00033013,14]
[332629130,1721374290322,-500.0,0.00033013,14]
[332629131,1721374290331,-500.0,0.00033013,14]
[332629132,1721374290341,-500.0,0.00033013,14]
[332629133,1721374290351,-283.34339136,0.00033013,14]
[332629134,1721374290364,-599.70881169,0.00033013,14]
[332629135,1721374290374,-1380.4,0.00033013,14]
[332629136,1721374290383,-500.0,0.00033013,14]
[332629137,1721374290393,-500.0,0.00033013,14]
[332629138,1721374290403,-1550.95,0.00033013,14]
[332629139,1721374290413,-500.0,0.00033013,14]
[332629140,1721374290422,-500.0,0.00033013,14]
[332629141,1721374290432,-1560.94,0.00033013,14]
[332629142,1721374290442,-500.0,0.00033013,14]
[332629143,1721374290451,-522.62,0.00033013,14]
[332629144,1721374290461,-500.0,0.00033013,14]
[332629145,1721374290471,-500.0,0.00033013,14]
[332629146,1721374290480,-772.54,0.00033013,14]
[332629147,1721374290490,-533.79,0.00033013,14]
[332629148,1721374290500,-1049.36,0.00033013,14]
[332629149,1721374290510,-500.0,0.00033013,14]
[332629150,1721374290519,-500.0,0.00033013,14]
[332629151,1721374290529,-758.49,0.00033013,14]
[332629152,1721374290539,-1990.65,0.00033013,14]
[332629153,1721374290549,-1111.98,0.00033013,14]
[332629154,1721374290558,-501.71001672,0.00033013,14]
[332629155,1721374290568,-760.92,0.00033013,14]
[332629156,1721374290577,-1730.51,0.00033013,14]
[332629157,1721374290587,-551.36,0.00033013,14]
[332629158,1721374290596,-4326.01,0.00033013,14]
[332629159,1721374290606,-588.86,0.00033013,14]
[332629160,1721374290617,-1572.72,0.00033013,14]
[332629161,1721374290626,-500.0,0.00033013,14]
[332629162,1721374290635,-500.0,0.00033013,14]
[332629163,1721374290645,-504.71648311,0.00033013,14]
[332629164,1721374290654,-1936.7,0.00033013,14]
[332629165,1721374290664,-500.0,0.00033013,14]
[332629166,1721374290675,-505.67286557,0.00033013,14]
[332629167,1721374290685,-500.0,0.00033013,14]
[332629168,1721374290694,-2053.54,0.00033013,14]
[332629169,1721374290703,-500.0,0.00033013,14]
[332629170,1721374290713,-2486.51,0.00033013,14]
[332629171,1721374290722,-4288.83,0.00033013,14]
[332629172,1721374290731,-500.0,0.00033013,14]
[332629173,1721374290741,-500.0,0.00033013,14]
[332629174,1721374290750,-500.0,0.00033013,14]
[332629175,1721374290759,-2391.82,0.00033013,14]
[332629176,1721374290769,-996.04,0.00033013,14]
[332629177,1721374290778,-702.75,0.00033013,14]
[332629178,1721374290788,-500.0,0.00033013,14]
[332629179,1721374290797,-500.0,0.00033013,14]
[332629180,1721374290807,-500.0,0.00033013,14]
[332629181,1721374290816,-500.0,0.00033013,14]
[332629182,1721374290825,-500.0,0.00033013,14]
[332629183,1721374290836,-1236.2,0.00033013,14]
[332629184,1721374290846,-1419.38,0.00033013,14]
[332629185,1721374290855,-500.0,0.00033013,14]
[332629186,1721374290865,-500.0,0.00033013,14]
[332629187,1721374290875,-500.0,0.00033013,14]
[332629188,1721374290885,-500.0,0.00033013,14]
[332629189,1721374290894,-500.0,0.00033013,14]
[332629190,1721374290904,-500.0,0.00033013,14]
[332629191,1721374290914,-500.0,0.00033013,14]
[332629192,1721374290925,-500.0,0.00033013,14]
[332629193,1721374290934,-2723.49,0.00033013,14]
[332629194,1721374290943,-500.0,0.00033013,14]
[332629195,1721374290953,-1245.55,0.00033013,14]
[332629196,1721374290963,-500.0,0.00033013,14]
[332629197,1721374290973,-1708.14,0.00033013,14]
[332629198,1721374290983,-500.0,0.00033013,14]
[332629199,1721374290993,-500.0,0.00033013,14]
[332629200,1721374291002,-500.0,0.00033013,14]
[332629201,1721374291012,-500.0,0.00033013,14]
[332629202,1721374291021,-2111.97,0.00033013,14]
[332629203,1721374291030,-500.0,0.00033013,14]
[332629204,1721374291040,-500.0,0.00033013,14]
[332629205,1721374291052,-2049.75,0.00033013,7]
[332629206,1721374291061,-500.0,0.00033013,14]
[332629207,1721374291070,-500.0,0.00033013,14]
[332629208,1721374291080,-3150.3,0.00033013,14]
[332629209,1721374291090,-1668.58,0.00033013,14]
[332629210,1721374291112,-583.78,0.00033013,14]
[332629211,1721374291130,-1289.1,0.00033013,14]
[332629212,1721374291150,-1118.18,0.00033013,14]
[332629213,1721374291171,-766.34,0.00033013,14]
[332629214,1721374291194,-913.26,0.00033013,14]
[332629215,1721374291212,-2072.22,0.00033013,14]
[332629216,1721374291228,-2467.95,0.00033013,14]
[332629217,1721374291245,-500.0,0.00033013,14]
[332629218,1721374291263,-2287.86,0.00033013,14]
[332629219,1721374291285,-500.0,0.00033013,14]
[332629220,1721374291298,-3489.46,0.00033013,14]
[332629221,1721374291315,-823.26,0.00033013,14]
[332629222,1721374291332,-600.72590282,0.00033013,14]
[332629223,1721374291348,-500.0,0.00033013,14]
[332629224,1721374291365,-500.0,0.00033013,14]
[332629225,1721374291381,-500.0,0.00033013,14]
[332629226,1721374291396,-1578.39,0.00033013,14]
[332629227,1721374291413,-500.0,0.00033013,14]
[332629228,1721374291428,-500.0,0.00033013,14]
[332629229,1721374291443,-500.0,0.00033013,14]
[332629230,1721374291459,-500.0,0.00033013,14]
[332629231,1721374291475,-500.0,0.00033013,14]
[332629232,1721374291491,-756.25,0.00033013,14]
[332629233,1721374291507,-500.0,0.00033013,14]
[332629234,1721374291522,-541.63,0.00033013,14]
[332629235,1721374291537,-500.0,0.00033013,14]
[332629236,1721374291553,-500.0,0.00033013,14]
[332629237,1721374291568,-500.0,0.00033013,14]
[332629238,1721374291584,-500.0,0.00033013,14]
[332629239,1721374291599,-1412.59,0.00033013,14]
[332629240,1721374291615,-1067.11,0.00033013,14]
[332629241,1721374291631,-500.0,0.00033013,14]
[332629242,1721374291646,-2252.48,0.00033013,14]
[332629243,1721374291662,-500.0,0.00033013,14]
[332629244,1721374291679,-2948.42,0.00033013,14]
[332629245,1721374291694,-784.93,0.00033013,14]
[332629246,1721374291709,-500.0,0.00033013,14]
[332629247,1721374291723,-503.2195911,0.00033013,14]
[332629248,1721374291738,-500.0,0.00033013,14]
[332629249,1721374291752,-500.0,0.00033013,14]
[332629250,1721374291767,-640.01,0.00033013,14]
[332629251,1721374291782,-500.0,0.00033013,14]
[332629252,1721374291797,-513.52,0.00033013,14]
[332629253,1721374291812,-1028.44,0.00033013,14]
[332629254,1721374291826,-500.0,0.00033013,14]
[332629255,1721374291842,-3712.8,0.00033013,14]
[332629256,1721374291856,-2021.9,0.00033013,14]
[332629257,1721374291871,-500.0,0.00033013,14]
[332629258,1721374291886,-1403.26,0.00033013,14]
[332629259,1721374291900,-500.0,0.00033013,14]
[332629260,1721374291914,-674.78,0.00033013,14]
[332629261,1721374291929,-937.06,0.00033013,14]
[332629262,1721374291943,-2643.01,0.00033013,14]
[332629263,1721374291958,-1627.03,0.00033013,14]
[332629264,1721374291973,-2462.55,0.00033013,14]
[332629265,1721374291988,-500.0,0.00033013,14]
[332629266,1721374292005,-500.0,0.00033013,14]
[332629267,1721374292021,-500.0,0.00033013,14]
[332629268,1721374292036,-3287.52,0.00033013,14]
[332629269,1721374292054,-517.71573484,0.00033013,14]
[332629270,1721374292069,-500.0,0.00033013,14]
[332629271,1721374292091,-500.0,0.00033013,14]
[332629272,1721374292106,-1936.03,0.00033013,14]
[332629273,1721374292122,-500.0,0.00033013,14]
[332629274,1721374292137,-2333.6,0.00033013,14]
[332629275,1721374292154,-1393.59,0.00033013,14]
[332629276,1721374292175,-500.0,0.00033013,14]
[332629277,1721374292189,-1525.3,0.00033013,14]
[332629278,1721374292205,-500.0,0.00033013,14]
[332629279,1721374292221,-500.0,0.00033013,14]
[332629280,1721374292238,-500.0,0.00033013,14]
[332629281,1721374292255,-500.0,0.00033013,14]
[332629282,1721374292269,-500.0,0.00033013,14]
[332629283,1721374292284,-500.0,0.00033013,14]
[332629284,1721374292300,-500.0,0.00033013,14]
[332629285,1721374292314,-500.0,0.00033013,14]
[332629286,1721374292330,-573.94,0.00033013,14]
[332629287,1721374292345,-500.0,0.00033013,14]
[332629288,1721374292360,-1371.28,0.00033013,14]
[332629289,1721374292376,-500.0,0.00033013,14]
[332629290,1721374292391,-3469.57,0.00033013,14]
[332629291,1721374292405,-631.52,0.00033013,14]
[332629292,1721374292420,-500.0,0.00033013,14]
[332629293,1721374292434,-588.43,0.00033013,14]
[332629294,1721374292451,-500.0,0.00033013,14]
[332629295,1721374292467,-1955.31,0.00033013,14]
[332629296,1721374292482,-2176.17,0.00033013,14]
[332629297,1721374292498,-500.0,0.00033013,14]
[332629298,1721374292513,-500.0,0.00033013,14]
[332629299,1721374292528,-2427.02,0.00033013,14]
[332629300,1721374292542,-500.0,0.00033013,14]
[332629301,1721374292558,-500.0,0.00033013,14]
[332629302,1721374292573,-500.0,0.00033013,14]
[332629303,1721374292589,-500.0,0.00033013,14]
[332629304,1721374292604,-1828.59,0.00033013,14]
[332629305,1721374292622,-5486.25,0.00033013,14]
[332629306,1721374292636,-500.0,0.00033013,14]
[332629307,1721374292654,-500.0,0.00033013,14]
[332629308,1721374292668,-1223.8,0.00033013,14]
[332629309,1721374292683,-612.21294329,0.00033013,14]
[332629310,1721374292696,-2146.48,0.00033013,14]
[332629311,1721374292711,-3526.03,0.00033013,14]
[332629312,1721374292725,-500.0,0.00033013,14]
[332629313,1721374292740,-764.16,0.00033013,14]
[332629314,1721374292755,-4860.92,0.00033013,14]
[332629315,1721374292769,-500.0,0.00033013,14]
[332629316,1721374292784,-271.09466121,0.00033013,14]
[332629317,1721374292799,-500.0,0.00033013,14]
[332629318,1721374292815,-500.0,0.00033013,14]
[332629319,1721374292829,-911.04,0.00033013,14]
[332629320,1721374292846,-500.0,0.00033013,14]
[332629321,1721374292863,-500.0,0.00033013,14]
[332629322,1721374292877,-803.43,0.00033013,14]
[332629323,1721374292892,-1186.38,0.00033013,14]
[332629324,1721374292908,-1434.17,0.00033013,14]
[332629325,1721374292922,-2377.08,0.00033013,14]
[332629326,1721374292936,-1324.17,0.00033013,14]
[332629327,1721374292949,-579.72,0.00033013,14]
[332629328,1721374292965,-1063.45,0.00033013,14]
[332629329,1721374292980,-997.28,0.00033013,14]
[332629330,1721374292993,-500.0,0.00033013,2]
[332629331,1721374293008,-500.0,0.00033013,14]
[332629332,1721374293022,-1722.45,0.00033013,14]
[332629333,1721374293036,-500.0,0.00033013,14]
[332629334,1721374293051,-1747.58,0.00033013,14]
[332629335,1721374293065,-691.87,0.00033013,14]
[332629336,1721374293079,-764.08,0.00033013,14]
[332629337,1721374293094,-2778.31,0.00033013,14]
[332629338,1721374293109,-731.94,0.00033013,14]
[332629339,1721374293125,-500.0,0.00033013,14]
[332629340,1721374293140,-500.0,0.00033013,14]
[332629341,1721374293157,-746.56,0.00033013,14]
[332629342,1721374293172,-2370.14,0.00033013,14]
[332629343,1721374293447,-2176.52,0.00033013,14]
[332629344,1721374293457,-3433.1,0.00033013,14]
[332629345,1721374293467,-500.0,0.00033013,14]
[332629346,1721374293476,-843.15,0.00033013,14]
[332629347,1721374293486,-946.47,0.00033013,14]
[332629348,1721374293496,-2612.42,0.00033013,14]
[332629349,1721374293505,-3257.38,0.00033013,14]
[332629350,1721374293515,-4807.83,0.00033013,14]
[332629351,1721374293524,-500.0,0.00033013,14]
[332629352,1721374293534,-776.7,0.00033013,14]
[332629353,1721374293543,-500.0,0.00033013,14]
[332629354,1721374293552,-6084.24,0.00033013,14]
[332629355,1721374293562,-500.0,0.00033013,14]
[332629356,1721374293571,-3104.0,0.00033013,14]
[332629357,1721374293581,-929.51,0.00033013,14]
[332629358,1721374293590,-500.0,0.00033013,14]
[332629359,1721374293600,-1119.11,0.00033013,14]
[332629360,1721374293612,-5083.91,0.00033013,14]
[332629361,1721374293622,-591.57,0.00033013,14]
[332629362,1721374293631,-773.81,0.00033013,14]
[332629363,1721374293640,-886.94,0.00033013,14]
[332629364,1721374293649,-500.0,0.00033013,14]
[332629365,1721374293658,-834.14,0.00033013,14]
[332629366,1721374293667,-520.14,0.00033013,14]
[332629367,1721374293676,-12975.5,0.00033013,14]
[332629368,1721374293686,-3729.59,0.00033013,14]
[332629369,1721374293695,-500.0,0.00033013,14]
[332629370,1721374293705,-564.41,0.00033013,14]
[332629371,1721374293714,-500.0,0.00033013,14]
[332629372,1721374293723,-2202.35,0.00033013,14]
[332629373,1721374293732,-500.0,0.00033013,14]
[332629374,1721374293742,-500.0,0.00033013,14]
[332629375,1721374293751,-4444.81,0.00033013,14]
[332629376,1721374293761,-500.0,0.00033013,14]
[332629377,1721374293770,-517.39,0.00033013,14]
[332629378,1721374293779,-6544.05,0.00033013,14]
[332629379,1721374293789,-448.47491919,0.00033013,14]
[332629380,1721374293798,-1479.28,0.00033013,14]
[332629381,1721374293807,-500.0,0.00033013,14]
[332629382,1721374293817,-7598.05,0.00033013,14]
[332629383,1721374293826,-500.0,0.00033013,14]
[332629384,1721374293835,-1223.02,0.00033013,14]
[332629385,1721374293845,-2618.85,0.00033013,14]
[332629386,1721374293854,-500.0,0.00033013,14]
[332629387,1721374293866,-500.0,0.00033013,14]
[332629388,1721374293875,-500.0,0.00033013,14]
[332629389,1721374293884,-500.0,0.00033013,14]
[332629390,1721374293894,-5744.48,0.00033013,14]
[332629391,1721374293903,-500.0,0.00033013,14]
[332629392,1721374293913,-1017.25,0.00033013,14]
[332629393,1721374293922,-1155.3,0.00033013,14]
[332629394,1721374293932,-597.01,0.00033013,14]
[332629395,1721374293941,-4429.22,0.00033013,14]
[332629396,1721374293950,-783.69,0.00033013,14]
[332629397,1721374293960,-590.27,0.00033013,14]
[332629398,1721374293969,-866.85,0.00033013,14]
[332629399,1721374293979,-3470.76,0.00033013,14]
[332629400,1721374293988,-500.0,0.00033013,14]
[332629401,1721374293998,-2242.37,0.00033013,14]
[332629402,1721374294007,-501.12,0.00033013,14]
[332629403,1721374294017,-500.0,0.00033013,14]